fUSD/lending_fUSD_20251006
["ID","MTS","AMOUNT","RATE_DAILY","PERIOD"]
[389666903,1759779032054,-150.0,0.0002148,7]
[389666904,1759779032063,-551.97596701,0.00021594,2]
[389666906,1759779032074,-1647.0,0.000218,3]
[389666909,1759779032083,-1750.12949084,0.000224,5]
[389666911,1759779032098,-590.61933078,0.000224,5]
[389666913,1759779032109,-2728.09794696,0.000224,5]
[389666915,1759779032122,-443.15323142,0.000224,5]
[389666918,1759779032131,-2500.0,0.00023012,7]
[389666919,1759779032140,-2500.0,0.00023021,7]
[389666921,1759779032149,-2500.0,0.0002303,7]
[389666923,1759779032158,-2500.0,0.00023038,7]
[389666924,1759779032168,-2500.0,0.00023047,7]
[389666926,1759779032177,-2500.0,0.00023056,7]
[389666928,1759779032187,-2500.0,0.00023065,7]
[389666930,1759779032196,-2500.0,0.00023074,7]
[389666933,1759779032205,-2500.0,0.00023082,7]
[389666936,1759779032214,-2500.0,0.00023091,7]
[389666939,1759779032224,-2500.0,0.000231,7]
[389666941,1759779032233,-551.97596701,0.0002325,2]
[389666942,1759779032243,-230.6,0.000241,30]
[389666943,1759779032252,-628.33,0.00024463,2]
[389666944,1759779032261,-621.0,0.00024463,2]
[389666945,1759779032270,-2046.0,0.00024463,2]
[389666946,1759779032280,-3790.98767709,0.00024463,2]
[389666947,1759779032292,-325.01232291,0.00024463,2]
[389666948,1759779032303,-3401.0,0.00024463,2]
[389666949,1759779032317,-10497.31299806,0.000245,2]
[389666950,1759779032326,-1653.551,0.00024543,7]
[389666951,1759779032336,-152.61789296,0.00024707,2]
[389666952,1759779032345,-500.0,0.00024799,2]
[389666953,1759779032354,-228.44446933,0.00024799,2]
[389666954,1759779032363,-200.58104236,0.00024799,2]
[389666955,1759779032372,-415.14576271,0.00024799,2]
[389666956,1759779032381,-11234.73423251,0.000248,3]
[389666975,1759779037578,-251.52,0.00024463,2]
[389666977,1759779037633,-1013.48,0.00024463,2]
[389666978,1759779037643,-203.28001,0.000248,3]
[389666979,1759779037688,-1409.27709826,0.000248,3]
[389666980,1759779037699,-1499.93408,0.000248,3]
[389666981,1759779037743,-87892.84974787,0.000248,3]
[389666982,1759779037799,-259.17444691,0.000248,3]
[389666993,1759779039672,-438.58780503,0.000248,3]
[389666994,1759779039684,-98118.76734855,0.000248,3]
[389666995,1759779039698,-7050.98761984,0.000248,3]
[389666996,1759779039710,-3862.21764806,0.000248,3]
[389666997,1759779039937,-3774.49092253,0.000248,3]
[389666998,1759779039948,-363.08303359,0.000248,3]
[389666999,1759779039958,-551.24935575,0.000248,3]
[389667000,1759779039969,-1000.00000504,0.000248,3]
[389667017,1759779042703,-210.44607133,0.0002,2]
[389667019,1759779042713,-89.55392867,0.000202,2]
[389667022,1759779042757,-120.89214266,0.000202,2]
[389667023,1759779042766,-210.44607133,0.000204,2]
[389667024,1759779042775,-210.44607133,0.000206,2]
[389667025,1759779042784,-210.44607133,0.000208,2]
[389667026,1759779042793,-449.91964335,0.000248,3]
[389667027,1759779042804,-661.709808,0.000248,3]
[389667028,1759779042816,-3139.55205029,0.000248,3]
[389667032,1759779045193,-25112.5279504,0.000248,3]
[389667043,1759779045658,-491.54865694,0.000248,3]
[389667044,1759779045670,-763.00258986,0.000248,3]
[389667045,1759779045692,-58889.88094466,0.000248,3]
[389667046,1759779045703,-606.64026756,0.000248,3]
[389667047,1759779045713,-3171.87183273,0.000249,3]
[389667048,1759779045726,-376.35,0.000249,3]
[389667049,1759779045820,-276.12866054,0.000249,3]
[389667050,1759779045929,-503.01904747,0.000249,3]
[389667110,1759780231965,-169.08,0.00013273,2]
[389667111,1759780231974,-250.71092542,0.00013937,2]
[389667112,1759780231983,-150.75213433,0.00014601,4]
[389667113,1759780231993,-195.0,0.00014601,2]
[389667114,1759780232004,-300.0,0.00014601,2]
[389667115,1759780232013,-315.56364025,0.00014601,2]
[389667116,1759780232025,-34.10460383,0.00014601,2]
[389667117,1759780232035,-267.88415432,0.00014601,2]
[389667118,1759780232044,-150.0,0.000164,120]
[389667119,1759780232055,-250.0,0.00017,2]
[389667120,1759780232064,-300.0,0.00019,2]
[389667121,1759780232074,-174.61919141,0.00019178,2]
[389667122,1759780232088,-169.08,0.0001965,2]
[389667123,1759780232097,-706.52703053,0.0002,2]
[389667124,1759780232109,-813.876003,0.0002,2]
[389667125,1759780232120,-176.57341758,0.0002,2]
[389667126,1759780232129,-422.12610042,0.000202,2]
[389667127,1759780232141,-1274.85035069,0.000202,2]
[389667128,1759780232150,-150.0,0.00020359,2]
[389667129,1759780232160,-1696.97645111,0.000204,2]
[389667130,1759780232169,-462.0,0.00020599,2]
[389667131,1759780232178,-1696.97645111,0.000206,2]
[389667132,1759780232187,-166.0,0.00020704,120]
[389667133,1759780232196,-1696.97645111,0.000208,2]
[389667134,1759780232205,-150.0,0.00020903,2]
[389667135,1759780232215,-1000.0,0.00021466,2]
[389667136,1759780232224,-4850.0,0.00021745,4]
[389667137,1759780232233,-11434.57761521,0.00021769,4]
[389667138,1759780232244,-5836.82795862,0.00021769,4]
[389667139,1759780232260,-417.17442617,0.00021769,4]
[389667140,1759780232270,-604.7,0.0002192,4]
[389667141,1759780232280,-1549.19,0.00022896,2]
[389667142,1759780232289,-150.0,0.00022918,2]
[389667143,1759780232299,-150.0,0.00023096,2]
[389667144,1759780232308,-2500.0,0.00023096,7]
[389667145,1759780232318,-2500.0,0.00023105,7]
[389667146,1759780232328,-1685.28365225,0.00023114,7]
[389667148,1759780232343,-814.71634775,0.00023114,7]
[389667150,1759780232352,-792.2,0.00023198,2]
[389667152,1759780232362,-322.04,0.00023779,2]
[389667154,1759780232371,-370.68887098,0.0002407,2]
[389667156,1759780232380,-239.84119403,0.00024076,2]
[389667157,1759780232390,-239.41737123,0.00024076,2]
[389667158,1759780232400,-7965.41053268,0.00024076,2]
[389667160,1759780232410,-613.60865077,0.0002413,2]
[389667162,1759780232419,-8260.13072239,0.00024131,2]
[389667164,1759780232429,-8565.75555911,0.00024186,2]
[389667167,1759780232439,-8882.6885148,0.00024241,2]
[389667169,1759780232449,-1421.82183062,0.00024296,2]
[389667171,1759780232458,-238.09,0.000243,30]
[389667173,1759780232468,-1004.88,0.00024415,2]
[389667175,1759780232477,-613.60865078,0.00024601,2]
[389667178,1759780232486,-515.5,0.00024658,2]
[389667181,1759780232496,-1000.0,0.00024669,2]
[389667184,1759780232505,-200.0,0.00024735,2]
[389667186,1759780232514,-151.0,0.00024735,2]
[389667189,1759780232524,-151.0,0.00024735,2]
[389667192,1759780232533,-151.0,0.00024735,2]
[389667195,1759780232546,-322.6107,0.00024735,2]
[389667196,1759780232556,-151.0,0.00024735,2]
[389667197,1759780232566,-200.0,0.00024735,2]
[389667198,1759780232575,-151.0,0.00024735,2]
[389667199,1759780232585,-200.0,0.00024735,2]
[389667200,1759780232594,-175.9071572,0.00024735,2]
[389667201,1759780232604,-151.0,0.00024735,2]
[389667202,1759780232613,-151.0,0.00024735,2]
[389667203,1759780232622,-151.0,0.00024735,2]
[389667204,1759780232632,-151.0,0.00024735,2]
[389667205,1759780232642,-151.0,0.00024735,2]
[389667206,1759780232651,-151.0,0.00024735,2]
[389667207,1759780232660,-151.0,0.00024735,2]
[389667208,1759780232670,-151.0,0.00024735,2]
[389667209,1759780232680,-151.0,0.00024735,2]
[389667210,1759780232689,-151.0,0.00024735,2]
[389667211,1759780232698,-151.0,0.00024735,2]
[389667212,1759780232708,-151.0,0.00024735,2]
[389667213,1759780232718,-151.0,0.00024735,2]
[389667214,1759780232728,-151.0,0.00024735,2]
[389667215,1759780232737,-151.0,0.00024735,2]
[389667216,1759780232746,-199.26053628,0.00024735,2]
[389667217,1759780232757,-500.0,0.00024735,2]
[389667218,1759780232767,-500.0,0.00024735,2]
[389667219,1759780232776,-500.0,0.00024735,2]
[389667220,1759780232785,-500.0,0.00024735,2]
[389667221,1759780232795,-432.59067889,0.00024735,2]
[389667222,1759780232806,-1322.841,0.00024749,8]
[389667223,1759780232818,-640.6020339,0.00024749,2]
[389667224,1759780232828,-201.35346858,0.00024749,2]
[389667225,1759780232837,-240.94078228,0.00024749,2]
[389667226,1759780232846,-31069.1886309,0.0002475,2]
[389667227,1759780232858,-814.0674498,0.0002475,2]
[389667228,1759780232867,-2754.8323329,0.0002475,2]
[389667229,1759780232876,-369.463713,0.0002475,2]
[389667230,1759780232888,-113164.64591,0.0002475,2]
[389667231,1759780232897,-1787.2640419,0.0002475,2]
[389667232,1759780232907,-500.0,0.00024773,2]
[389667233,1759780232916,-500.0,0.00024773,2]
[389667234,1759780232926,-500.0,0.00024773,2]
[389667235,1759780232942,-284.24314817,0.00024773,2]
[389667236,1759780232952,-1169.24047386,0.00024844,2]
[389667237,1759780232961,-152.87,0.000249,2]
[389667238,1759780232971,-515.94,0.000249,2]
[389667239,1759780232980,-310.8921524,0.000249,7]
[389667240,1759780232990,-200.0,0.000249,2]
[389667241,1759780233000,-200.0,0.000249,2]
[389667242,1759780233011,-200.0,0.000249,2]
[389667243,1759780233022,-2270.60697,0.000249,2]
[389667244,1759780233032,-917.637,0.000249,2]
[389667245,1759780233042,-205.391,0.000249,2]
[389667246,1759780233051,-200.0,0.000249,2]
[389667247,1759780233061,-1231.0,0.000249,2]
[389667248,1759780233070,-1231.0,0.000249,2]
[389667249,1759780233080,-1231.0,0.000249,2]
[389667250,1759780233090,-1231.0,0.000249,2]
[389667251,1759780233099,-1231.0,0.000249,2]
[389667252,1759780233109,-1231.0,0.000249,2]
[389667253,1759780233118,-151.0,0.000249,2]
[389667254,1759780233128,-1231.0,0.000249,2]
[389667255,1759780233138,-151.0,0.000249,2]
[389667256,1759780233148,-151.0,0.000249,2]
[389667257,1759780233158,-151.0,0.000249,2]
[389667258,1759780233167,-151.0,0.000249,2]
[389667259,1759780233176,-151.0,0.000249,2]
[389667260,1759780233186,-151.0,0.000249,2]
[389667261,1759780233196,-1231.0,0.000249,2]
[389667262,1759780233205,-151.0,0.000249,2]
[389667263,1759780233215,-151.0,0.000249,2]
[389667264,1759780233237,-1231.0,0.000249,2]
[389667265,1759780233249,-151.0,0.000249,2]
[389667266,1759780233262,-151.0,0.000249,2]
[389667267,1759780233274,-1231.0,0.000249,2]
[389667268,1759780233288,-151.0,0.000249,2]
[389667269,1759780233300,-819.0,0.000249,2]
[389667270,1759780233312,-151.0,0.000249,2]
[389667271,1759780233324,-151.0,0.000249,2]
[389667272,1759780233335,-1231.0,0.000249,2]
[389667273,1759780233345,-819.0,0.000249,2]
[389667274,1759780233356,-151.0,0.000249,2]
[389667275,1759780233366,-151.0,0.000249,2]
[389667276,1759780233377,-1231.0,0.000249,2]
[389667277,1759780233388,-819.0,0.000249,2]
[389667278,1759780233399,-151.0,0.000249,2]
[389667279,1759780233410,-819.0,0.000249,2]
[389667280,1759780233422,-151.0,0.000249,2]
[389667281,1759780233433,-1231.0,0.000249,2]
[389667282,1759780233447,-151.0,0.000249,2]
[389667283,1759780233458,-819.0,0.000249,2]
[389667284,1759780233469,-1231.0,0.000249,2]
[389667285,1759780233480,-151.0,0.000249,2]
[389667286,1759780233492,-819.0,0.000249,2]
[389667287,1759780233505,-151.0,0.000249,2]
[389667288,1759780233517,-1231.0,0.000249,2]
[389667289,1759780233529,-151.0,0.000249,2]
[389667290,1759780233540,-1231.0,0.000249,2]
[389667291,1759780233550,-819.0,0.000249,2]
[389667292,1759780233561,-151.0,0.000249,2]
[389667293,1759780233571,-151.0,0.000249,2]
[389667294,1759780233582,-1231.0,0.000249,2]
[389667295,1759780233592,-324.23544011,0.000249,2]
[389667296,1759780233602,-151.0,0.000249,2]
[389667297,1759780233612,-1231.0,0.000249,2]
[389667298,1759780233622,-151.0,0.000249,2]
[389667299,1759780233632,-151.0,0.000249,2]
[389667300,1759780233644,-1231.0,0.000249,2]
[389667301,1759780233655,-151.0,0.000249,2]
[389667302,1759780233666,-151.0,0.000249,2]
[389667303,1759780233676,-733.52448171,0.000249,2]
[389667304,1759780233697,-497.47551829,0.000249,2]
[389667305,1759780233708,-151.0,0.000249,2]
[389667306,1759780233719,-151.0,0.000249,2]
[389667307,1759780233729,-264.89915668,0.000249,2]
[389667308,1759780233743,-966.10084332,0.000249,2]
[389667309,1759780233754,-151.0,0.000249,2]
[389667310,1759780233765,-151.0,0.000249,2]
[389667311,1759780233777,-1231.0,0.000249,2]
[389667312,1759780233788,-151.0,0.000249,2]
[389667313,1759780233799,-151.0,0.000249,2]
[389667314,1759780233812,-1231.0,0.000249,2]
[389667315,1759780233823,-151.0,0.000249,2]
[389667316,1759780233834,-151.0,0.000249,2]
[389667317,1759780233845,-1231.0,0.000249,2]
[389667318,1759780233857,-151.0,0.000249,2]
[389667319,1759780233877,-151.0,0.000249,2]
[389667320,1759780233892,-1231.0,0.000249,2]
[389667321,1759780233904,-151.0,0.000249,2]
[389667322,1759780233918,-1231.0,0.000249,2]
[389667323,1759780233931,-151.0,0.000249,2]
[389667324,1759780233943,-151.0,0.000249,2]
[389667325,1759780233955,-1231.0,0.000249,2]
[389667326,1759780233967,-151.0,0.000249,2]
[389667327,1759780233979,-151.0,0.000249,2]
[389667328,1759780233991,-1231.0,0.000249,2]
[389667329,1759780234003,-151.0,0.000249,2]
[389667330,1759780234013,-151.0,0.000249,2]
[389667331,1759780234026,-1231.0,0.000249,2]
[389667332,1759780234037,-151.0,0.000249,2]
[389667333,1759780234048,-151.0,0.000249,2]
[389667334,1759780234058,-1231.0,0.000249,2]
[389667335,1759780234070,-151.0,0.000249,2]
[389667336,1759780234080,-151.0,0.000249,2]
[389667337,1759780234092,-1231.0,0.000249,2]
[389667338,1759780234103,-151.0,0.000249,2]
[389667339,1759780234114,-151.0,0.000249,2]
[389667340,1759780234126,-1231.0,0.000249,2]
[389667341,1759780234144,-151.0,0.000249,2]
[389667342,1759780234155,-151.0,0.000249,2]
[389667343,1759780234168,-1231.0,0.000249,2]
[389667344,1759780234180,-151.0,0.000249,2]
[389667345,1759780234192,-151.0,0.000249,2]
[389667346,1759780234203,-1231.0,0.000249,2]
[389667347,1759780234215,-151.0,0.000249,2]
[389667348,1759780234227,-151.0,0.000249,2]
[389667349,1759780234239,-1278.35872761,0.000249,2]
[389667350,1759780234251,-151.0,0.000249,2]
[389667351,1759780234262,-151.0,0.000249,2]
[389667352,1759780234272,-151.0,0.000249,2]
[389667353,1759780234282,-155.04786661,0.000249,2]
[389667354,1759780234291,-151.0,0.000249,2]
[389667355,1759780234302,-151.0,0.000249,2]
[389667356,1759780234313,-151.0,0.000249,2]
[389667357,1759780234323,-151.0,0.000249,2]
[389667358,1759780234333,-1155.68,0.00025,2]
[389667359,1759780234344,-1677.0,0.00025051,2]
[389667360,1759780234356,-200.0,0.00025149,2]
[389667361,1759780234368,-200.0,0.00025149,2]
[389667362,1759780234381,-200.0,0.00025149,2]
[389667363,1759780234391,-173.62,0.00025149,2]
[389667364,1759780234402,-5000.0,0.00025173,2]
[389667365,1759780234412,-2868.91761722,0.00025199,2]
[389667366,1759780234422,-3629.0,0.00025299,2]
[389667367,1759780234431,-833.0,0.00025299,2]
[389667368,1759780234441,-1265.0,0.00025299,2]
[389667369,1759780234454,-3399.0,0.00025299,2]
[389667370,1759780234464,-1585.0,0.00025299,2]
[389667371,1759780234474,-1307.0,0.00025299,2]
[389667372,1759780234484,-570.0,0.00025299,2]
[389667373,1759780234494,-603.0,0.00025299,2]
[389667374,1759780234505,-815.0,0.00025299,2]
[389667375,1759780234516,-1677.0,0.00025309,2]
[389667376,1759780234530,-200.0,0.000254,2]
[389667377,1759780234541,-200.0,0.000254,2]
[389667378,1759780234552,-200.0,0.000254,2]
[389667379,1759780234563,-500.0,0.0002546,2]
[389667380,1759780234572,-1155.68,0.000255,2]
[389667381,1759780234582,-783.80320383,0.0002553,2]
[389667382,1759780234593,-1677.0,0.00025568,2]
[389667383,1759780234603,-200.0,0.00025654,2]
[389667384,1759780234613,-200.0,0.00025654,2]
[389667385,1759780234623,-2868.91761716,0.00025683,2]
[389667386,1759780234634,-548.68064684,0.000257,2]
[389667387,1759780234644,-501.3878239,0.000257,2]
[389667388,1759780234655,-503.47512392,0.000257,2]
[389667389,1759780234665,-2000.0,0.000258,2]
[389667390,1759780234676,-1677.0,0.00025826,2]
[389667391,1759780234687,-612.0862037,0.00025826,2]
[389667392,1759780234699,-277.33,0.00025881,2]
[389667393,1759780234710,-200.0,0.00025911,2]
[389667394,1759780234721,-200.0,0.00025911,2]
[389667395,1759780234740,-28145.94759144,0.00026,2]
[389667396,1759780234755,-294.46137287,0.00026,2]
[389667397,1759780234768,-1559.59103569,0.00026,2]
[389667398,1759780234779,-169.08,0.00026026,2]
[389667399,1759780234791,-1677.0,0.00026084,2]
[389667400,1759780234802,-209.84086431,0.00026104,2]
[389667401,1759780234819,-73.95577123,0.00026104,2]
[389667402,1759780234830,-2868.91761716,0.00026168,2]
[389667403,1759780234841,-300.0,0.00026195,2]
[389667404,1759780234853,-1677.0,0.00026342,2]
[389667405,1759780234864,-1677.0,0.00026601,2]
[389667406,1759780234875,-155.610811,0.00026604,2]
[389667407,1759780234890,-153.659402,0.00026604,2]
[389667408,1759780234902,-155.458997,0.00026604,2]
[389667409,1759780234914,-2868.91761716,0.00026652,2]
[389667410,1759780234927,-1000.0,0.00026676,2]
[389667411,1759780234938,-654.95,0.00026689,2]
[389667412,1759780234949,-150.0,0.00026704,4]
[389667413,1759780234960,-150.0,0.00026704,4]
[389667414,1759780234971,-140.52978445,0.00026704,4]
[389667421,1759780237784,-500.0,0.00020797,2]
[389667422,1759780237795,-430.74427779,0.00020797,2]
[389667423,1759780237810,-69.25572221,0.00020797,2]
[389667424,1759780237824,-379.98360526,0.00020797,2]
[389667425,1759780237836,-158.85843265,0.00020797,2]
[389667426,1759780237846,-269.76098442,0.00020797,2]
[389667427,1759780237893,-47.52397169,0.00020797,2]
[389667428,1759780237903,-151.0,0.000249,2]
[389667429,1759780237913,-151.0,0.000249,2]
[389667430,1759780237924,-151.0,0.000249,2]
[389667431,1759780237935,-151.0,0.000249,2]
[389667432,1759780237946,-151.0,0.000249,2]
[389667433,1759780237956,-151.0,0.000249,2]
[389667434,1759780237967,-151.0,0.000249,2]
[389667435,1759780237977,-151.0,0.000249,2]
[389667436,1759780237988,-151.0,0.000249,2]
[389667437,1759780237998,-151.0,0.000249,2]
[389667438,1759780238008,-151.0,0.000249,2]
[389667439,1759780238018,-151.0,0.000249,2]
[389667440,1759780238029,-151.0,0.000249,2]
[389667441,1759780238041,-151.0,0.000249,2]
[389667442,1759780238051,-151.0,0.000249,2]
[389667443,1759780238062,-151.0,0.000249,2]
[389667444,1759780238072,-151.0,0.000249,2]
[389667445,1759780238082,-151.0,0.000249,2]
[389667446,1759780238092,-199.56515124,0.000249,2]
[389667447,1759780238102,-9.47021555,0.00026704,4]
[389667449,1759780238112,-150.0,0.00026704,4]
[389667450,1759780238122,-150.0,0.00026704,4]
[389667451,1759780238132,-2271.7,0.00026721,2]
[389667452,1759780238143,-500.0,0.00026877,2]
[389667453,1759780238154,-152.0,0.00026894,3]
[389667454,1759780238165,-2270.60698,0.000269,2]
[389667456,1759780238175,-289.86078649,0.00026916,2]
[389667458,1759780238186,-2868.91761716,0.00027136,2]
[389667460,1759780238196,-173.62,0.00027225,2]
[389667461,1759780238207,-455.0,0.00027282,7]
[389667462,1759780238217,-202.0,0.000273,2]
[389667464,1759780238227,-300.0,0.00027397,2]
[389667466,1759780238238,-1500.0,0.00027397,16]
[389667468,1759780238248,-170.64476142,0.00027397,2]
[389667470,1759780238259,-545.7,0.00027425,2]
[389667472,1759780238270,-175.72,0.00027425,2]
[389667474,1759780238280,-545.7,0.00027425,2]
[389667476,1759780238291,-2393.68,0.00027425,2]
[389667478,1759780238301,-412.63,0.00027425,2]
[389667479,1759780238311,-545.7,0.00027425,2]
[389667480,1759780238321,-175.72,0.00027425,2]
[389667481,1759780238331,-175.72,0.00027425,2]
[389667482,1759780238341,-382.71,0.00027425,2]
[389667483,1759780238351,-175.21,0.00027425,2]
[389667484,1759780238361,-1588.61,0.00027432,2]
[389667485,1759780238371,-1004.88,0.00027467,120]
[389667486,1759780238381,-515.5,0.00027472,2]
[389667487,1759780238392,-814.0674498,0.00027507,2]
[389667488,1759780238403,-31069.1886309,0.00027558,2]
[389667489,1759780238413,-300.0,0.00027564,2]
[389667490,1759780238423,-2868.91761716,0.00027621,2]
[389667491,1759780238433,-1000.0,0.00027675,2]
[389667492,1759780238444,-250.0,0.00027677,2]
[389667493,1759780238454,-666.0,0.00027677,3]
[389667494,1759780238465,-455.0,0.00027715,2]
[389667495,1759780238475,-2040.766575,0.00028,60]
[389667496,1759780238485,-2000.0,0.00028,3]
[389667497,1759780238496,-1000.0,0.00028012,2]
[389667498,1759780238506,-462.0,0.00028017,120]
[389667499,1759780238516,-654.95,0.00028023,2]
[389667500,1759780238526,-500.0,0.00028067,15]
[389667501,1759780238537,-788.8,0.00028067,15]
[389667502,1759780238547,-225.0,0.00028101,7]
[389667503,1759780238559,-2868.91761716,0.00028105,2]
[389667504,1759780238569,-789.338,0.00028299,2]
[389667505,1759780238579,-500.0,0.00028341,15]
[389667506,1759780238588,-225.0,0.00028416,2]
[389667507,1759780238599,-233.0,0.0002844,2]
[389667508,1759780238608,-198.0,0.0002848,2]
[389667509,1759780238618,-200.0,0.000285,10]
[389667510,1759780238629,-180.717,0.00028585,2]
[389667511,1759780238639,-2868.91761716,0.00028589,2]
[389667512,1759780238650,-500.0,0.000286,10]
[389667513,1759780238661,-500.0,0.00028615,15]
[389667514,1759780238672,-1425.0,0.00028617,2]
[389667515,1759780238682,-584.38000121,0.00028632,2]
[389667516,1759780238692,-1000.0,0.00028679,2]
[389667517,1759780238702,-180.717,0.00028685,2]
[389667518,1759780238712,-1000.0,0.00028699,2]
[389667519,1759780239137,-700.0,0.000287,10]
[389667520,1759780239164,-229.0,0.00028736,2]
[389667521,1759780239179,-180.717,0.00028785,2]
[389667522,1759780239189,-300.0,0.000288,10]
[389667523,1759780239199,-1000.0,0.000288,10]
[389667524,1759780239208,-4000.0,0.0002882,30]
[389667525,1759780239218,-230.0,0.00028824,7]
[389667526,1759780239228,-1139.37518555,0.00028831,2]
[389667527,1759780239238,-25250.445565,0.00028882,2]
[389667528,1759780239248,-500.0,0.00028889,15]
[389667529,1759780239257,-268.58763033,0.000289,13]
[389667530,1759780239268,-150.0,0.000289,10]
[389667531,1759780239278,-2270.60698,0.000289,2]
[389667532,1759780239287,-700.0,0.000289,10]
[389667533,1759780239296,-1300.0,0.000289,10]
[389667534,1759780239306,-7000.0,0.0002893,2]
[389667535,1759780239316,-1000.0,0.00028994,2]
[389667536,1759780239326,-1000.0,0.00028996,2]
[389667537,1759780239336,-2000.0,0.00029,4]
[389667538,1759780239346,-807.65,0.00029014,2]
[389667539,1759780239355,-807.65,0.00029014,2]
[389667540,1759780239364,-1475.44,0.00029014,2]
[389667541,1759780239373,-229.0,0.0002902,2]
[389667542,1759780239383,-390.380273,0.00029041,120]
[389667543,1759780239393,-1323.82530819,0.00029057,2]
[389667544,1759780239402,-2868.91761716,0.00029074,2]
[389667545,1759780239411,-1100.0,0.000291,10]
[389667546,1759780239422,-500.0,0.00029163,15]
[389667547,1759780239431,-155.30489144,0.00029176,2]
[389667548,1759780239440,-150.0,0.00029177,120]
[389667549,1759780239450,-34232.701652,0.00029185,3]
[389667550,1759780239459,-152.72670248,0.00029187,15]
[389667551,1759780239469,-5041.54223832,0.00029195,2]
[389667552,1759780239478,-19879.8676,0.00029195,2]
[389667553,1759780239487,-1500.0,0.000292,10]
[389667554,1759780239496,-357.90159309,0.00029205,2]
[389667555,1759780239506,-213.12352725,0.00029205,2]
[389667556,1759780239516,-931.57824263,0.00029205,2]
[389667557,1759780239526,-174.85507819,0.00029205,2]
[389667558,1759780239536,-5000.0,0.00029205,2]
[389667559,1759780239546,-229.0,0.0002922,2]
[389667560,1759780239556,-230.0,0.00029243,2]
[389667561,1759780239566,-150.0,0.00029276,2]
[389667562,1759780239576,-321.15843972,0.00029278,2]
[389667563,1759780239585,-409.31958003,0.0002928,2]
[389667564,1759780239595,-497.48072035,0.00029282,2]
[389667565,1759780239604,-585.64186066,0.00029284,2]
[389667566,1759780239614,-673.80300097,0.00029287,2]
[389667567,1759780239623,-761.96414129,0.00029289,2]
[389667568,1759780239632,-155.30489138,0.0002929,2]
[389667570,1759780239642,-850.1252816,0.00029291,2]
[389667572,1759780239651,-938.28642192,0.00029293,2]
[389667574,1759780239660,-150.5,0.00029295,2]
[389667575,1759780239670,-150.5,0.00029295,2]
[389667576,1759780239679,-150.5,0.00029295,2]
[389667577,1759780239688,-815.92157843,0.00029295,2]
[389667579,1759780239697,-150.5,0.00029295,2]
[389667581,1759780239706,-815.92157843,0.00029295,2]
[389667583,1759780239715,-150.5,0.00029295,2]
[389667584,1759780239724,-150.5,0.00029295,2]
[389667585,1759780239733,-150.5,0.00029295,2]
[389667586,1759780239741,-150.5,0.00029295,2]
[389667587,1759780239750,-150.5,0.00029295,2]
[389667588,1759780239759,-150.5,0.00029295,2]
[389667589,1759780239771,-150.5,0.00029295,2]
[389667590,1759780239781,-150.5,0.00029295,2]
[389667591,1759780239790,-150.5,0.00029295,2]
[389667592,1759780239800,-150.5,0.00029295,2]
[389667593,1759780239811,-150.5,0.00029295,2]